[Event "January 9 Early 2024"]
[Site "https://www.chess.com"]
[Date "2024.01.11"]
[Round "8"]
[White "Terry, Renato"]
[Black "Zou, Chen"]
[Result "1-0"]
[Board "152"]
[TimeControl "180+1"]
[WhiteFideId "3803457"]
[BlackFideId "8610959"]
[WhiteElo "2990"]
[BlackElo "2811"]
[WhiteTeam "PER"]
[BlackTeam "CHN"]
[WhiteClock "0:00:44"]
[BlackClock "0:00:01"]

1. d4 {[%clk 0:03:00]}  g6 {[%clk 0:02:54]} 2. c3 {[%clk 0:02:59]}  Bg7 {[%clk 0:02:53]} 3. e4 {[%clk 0:02:58]}  a6 {[%clk 0:02:52]} 4. Nf3 {[%clk 0:02:58]}  d6 {[%clk 0:02:49]} 5. Bc4 {[%clk 0:02:56]}  e6 {[%clk 0:02:49]} 6. a4 {[%clk 0:02:56]}  Ne7 {[%clk 0:02:49]} 7. O-O {[%clk 0:02:56]}  O-O {[%clk 0:02:49]} 8. Nbd2 {[%clk 0:02:57]}  b6 {[%clk 0:02:47]} 9. Re1 {[%clk 0:02:57]}  Bb7 {[%clk 0:02:47]} 10. Nf1 {[%clk 0:02:57]}  Nd7 {[%clk 0:02:48]} 11. Ng3 {[%clk 0:02:58]}  d5 {[%clk 0:02:44]} 12. exd5 {[%clk 0:02:56]}  Nxd5 {[%clk 0:02:45]} 13. Bg5 {[%clk 0:02:55]}  Qc8 {[%clk 0:02:44]} 14. Qd2 {[%clk 0:02:53]}  c5 {[%clk 0:02:30]} 15. Rac1 {[%clk 0:02:51]}  Qc6 {[%clk 0:02:10]} 16. Bb3 {[%clk 0:02:50]}  b5 {[%clk 0:01:57]} 17. axb5 {[%clk 0:02:49]}  axb5 {[%clk 0:01:57]} 18. h4 {[%clk 0:02:43]}  c4 {[%clk 0:01:49]} 19. Bc2 {[%clk 0:02:43]}  Ra2 {[%clk 0:01:49]} 20. Bb1 {[%clk 0:02:43]}  Raa8 {[%clk 0:01:39]} 21. h5 {[%clk 0:02:43]}  N5f6 {[%clk 0:01:37]} 22. Bh6 {[%clk 0:02:26]}  Rfe8 {[%clk 0:01:27]} 23. Bxg7 {[%clk 0:02:26]}  Kxg7 {[%clk 0:01:28]} 24. h6+ {[%clk 0:02:26]}  Kg8 {[%clk 0:01:28]} 25. Qf4 {[%clk 0:02:20]}  Nd5 {[%clk 0:01:22]} 26. Qg5 {[%clk 0:02:20]}  Qd6 {[%clk 0:01:16]} 27. Ne5 {[%clk 0:01:45]}  Nxe5 {[%clk 0:00:43]} 28. dxe5 {[%clk 0:01:43]}  Qe7 {[%clk 0:00:43]} 29. Qg4 {[%clk 0:01:40]}  Kh8 {[%clk 0:00:38]} 30. Ne4 {[%clk 0:01:40]}  f5 {[%clk 0:00:38]} 31. exf6 {[%clk 0:01:39]}  Nxf6 {[%clk 0:00:39]} 32. Qg3 {[%clk 0:01:34]}  Bxe4 {[%clk 0:00:37]} 33. Bxe4 {[%clk 0:01:35]}  Nxe4 {[%clk 0:00:31]} 34. Rxe4 {[%clk 0:01:36]}  Qf6 {[%clk 0:00:30]} 35. Rce1 {[%clk 0:01:33]}  g5 {[%clk 0:00:27]} 36. Re5 {[%clk 0:01:22]}  Qxh6 {[%clk 0:00:26]} 37. Rxb5 {[%clk 0:01:14]}  Qf6 {[%clk 0:00:26]} 38. Rxg5 {[%clk 0:01:09]}  Rg8 {[%clk 0:00:22]} 39. Qe5 {[%clk 0:01:07]}  Raf8 {[%clk 0:00:16]} 40. Rxg8+ {[%clk 0:01:03]}  Kxg8 {[%clk 0:00:16]} 41. Qxe6+ {[%clk 0:01:03]}  Qxe6 {[%clk 0:00:16]} 42. Rxe6 {[%clk 0:01:04]}  Rb8 {[%clk 0:00:17]} 43. Re2 {[%clk 0:00:59]}  Kf7 {[%clk 0:00:17]} 44. f3 {[%clk 0:00:57]}  Kf6 {[%clk 0:00:18]} 45. Kf2 {[%clk 0:00:58]}  h5 {[%clk 0:00:18]} 46. Kg3 {[%clk 0:00:56]}  Kg5 {[%clk 0:00:17]} 47. f4+ {[%clk 0:00:48]}  Kf6 {[%clk 0:00:15]} 48. Kh4 {[%clk 0:00:45]}  Kf5 {[%clk 0:00:16]} 49. g3 {[%clk 0:00:46]}  Rb7 {[%clk 0:00:12]} 50. Re5+ {[%clk 0:00:43]}  Kf6 {[%clk 0:00:13]} 51. Kxh5 {[%clk 0:00:42]}  Rxb2 {[%clk 0:00:12]} 52. Rc5 {[%clk 0:00:43]}  Rg2 {[%clk 0:00:07]} 53. Kg4 {[%clk 0:00:42]}  Rc2 {[%clk 0:00:06]} 54. Rc6+ {[%clk 0:00:43]}  Kf7 {[%clk 0:00:06]} 55. Rxc4 {[%clk 0:00:44]}  Rd2 {[%clk 0:00:01]} 1-0

[Event "January 9 Early 2024"]
[Site "https://www.chess.com"]
[Date "2024.01.11"]
[Round "8"]
[White "Pourkashiyan, Atousa"]
[Black "Wu, Derek"]
[Result "1/2-1/2"]
[Board "154"]
[TimeControl "180+1"]
[WhiteFideId "12502014"]
[BlackFideId "30914558"]
[WhiteElo "2501"]
[BlackElo "2663"]
[WhiteTeam "USA"]
[BlackTeam "USA"]
[WhiteClock "0:00:10"]
[BlackClock "0:00:28"]

1. d4 {[%clk 0:02:51]}  d5 {[%clk 0:02:58]} 2. c4 {[%clk 0:02:51]}  c6 {[%clk 0:02:59]} 3. Nf3 {[%clk 0:02:51]}  Nf6 {[%clk 0:02:59]} 4. Nc3 {[%clk 0:02:50]}  dxc4 {[%clk 0:02:59]} 5. Ne5 {[%clk 0:02:50]}  Bf5 {[%clk 0:02:55]} 6. Nxc4 {[%clk 0:02:47]}  e6 {[%clk 0:02:51]} 7. e3 {[%clk 0:02:47]}  Nbd7 {[%clk 0:02:46]} 8. Be2 {[%clk 0:02:47]}  Bb4 {[%clk 0:02:46]} 9. O-O {[%clk 0:02:47]}  O-O {[%clk 0:02:46]} 10. Bd2 {[%clk 0:02:47]}  Qe7 {[%clk 0:02:44]} 11. a3 {[%clk 0:02:47]}  Bxc3 {[%clk 0:02:42]} 12. Bxc3 {[%clk 0:02:47]}  Ne4 {[%clk 0:02:42]} 13. Rc1 {[%clk 0:02:45]}  Nb6 {[%clk 0:02:41]} 14. Ne5 {[%clk 0:02:42]}  Nxc3 {[%clk 0:02:40]} 15. Rxc3 {[%clk 0:02:37]}  Rfd8 {[%clk 0:02:36]} 16. Bd3 {[%clk 0:02:23]}  Bg6 {[%clk 0:02:32]} 17. Bxg6 {[%clk 0:02:17]}  hxg6 {[%clk 0:02:33]} 18. Qg4 {[%clk 0:02:11]}  Nd5 {[%clk 0:02:31]} 19. Rcc1 {[%clk 0:02:06]}  Rac8 {[%clk 0:02:30]} 20. Rfd1 {[%clk 0:01:50]}  c5 {[%clk 0:02:29]} 21. dxc5 {[%clk 0:01:49]}  Rxc5 {[%clk 0:02:30]} 22. Rxc5 {[%clk 0:01:49]}  Qxc5 {[%clk 0:02:29]} 23. e4 {[%clk 0:01:45]}  Qc7 {[%clk 0:02:29]} 24. Nxf7 {[%clk 0:01:30]}  Qxf7 {[%clk 0:02:14]} 25. exd5 {[%clk 0:01:30]}  Rxd5 {[%clk 0:02:10]} 26. g3 {[%clk 0:01:19]}  Qf5 {[%clk 0:02:07]} 27. Qe2 {[%clk 0:01:17]}  g5 {[%clk 0:01:54]} 28. Rxd5 {[%clk 0:01:12]}  Qxd5 {[%clk 0:01:54]} 29. h3 {[%clk 0:01:06]}  a5 {[%clk 0:01:48]} 30. Kh2 {[%clk 0:01:02]}  Kf7 {[%clk 0:01:43]} 31. Qe3 {[%clk 0:01:02]}  Kg6 {[%clk 0:01:35]} 32. Qc3 {[%clk 0:01:00]}  Qf5 {[%clk 0:01:30]} 33. Qe3 {[%clk 0:00:57]}  b5 {[%clk 0:01:28]} 34. b4 {[%clk 0:00:56]}  a4 {[%clk 0:01:27]} 35. Qb6 {[%clk 0:00:52]}  Kh7 {[%clk 0:01:24]} 36. Qe3 {[%clk 0:00:50]}  Qd5 {[%clk 0:01:22]} 37. Qe2 {[%clk 0:00:44]}  Qc4 {[%clk 0:01:14]} 38. Qh5+ {[%clk 0:00:42]}  Kg8 {[%clk 0:01:14]} 39. Qxg5 {[%clk 0:00:43]}  Qd4 {[%clk 0:01:12]} 40. Qe3 {[%clk 0:00:38]}  Qd5 {[%clk 0:01:09]} 41. h4 {[%clk 0:00:38]}  Kf7 {[%clk 0:01:08]} 42. Qf4+ {[%clk 0:00:37]}  Kg8 {[%clk 0:01:07]} 43. Qb8+ {[%clk 0:00:33]}  Kh7 {[%clk 0:01:07]} 44. Qf4 {[%clk 0:00:33]}  Qd3 {[%clk 0:01:04]} 45. Qe3 {[%clk 0:00:32]}  Qc2 {[%clk 0:01:02]} 46. g4 {[%clk 0:00:29]}  e5 {[%clk 0:01:01]} 47. Kg3 {[%clk 0:00:28]}  Qb2 {[%clk 0:00:55]} 48. Qd3+ {[%clk 0:00:25]}  Kg8 {[%clk 0:00:54]} 49. g5 {[%clk 0:00:22]}  Qb3 {[%clk 0:00:51]} 50. Qe3 {[%clk 0:00:21]}  Kf7 {[%clk 0:00:51]} 51. h5 {[%clk 0:00:19]}  Ke6 {[%clk 0:00:46]} 52. Kg4 {[%clk 0:00:18]}  Qd1+ {[%clk 0:00:46]} 53. Qf3 {[%clk 0:00:15]}  Qg1+ {[%clk 0:00:43]} 54. Qg3 {[%clk 0:00:15]}  Qd1+ {[%clk 0:00:42]} 55. Kh4 {[%clk 0:00:15]}  Kd6 {[%clk 0:00:35]} 56. h6 {[%clk 0:00:12]}  Qh1+ {[%clk 0:00:35]} 57. Qh3 {[%clk 0:00:12]}  Qe4+ {[%clk 0:00:35]} 58. Qg4 {[%clk 0:00:10]}  Qh1+ {[%clk 0:00:34]} 59. Qh3 {[%clk 0:00:11]}  Qe4+ {[%clk 0:00:33]} 60. Qg4 {[%clk 0:00:12]}  Qh1+ {[%clk 0:00:28]} 61. Qh3 {[%clk 0:00:10]} 1/2-1/2

[Event "January 9 Early 2024"]
[Site "https://www.chess.com"]
[Date "2024.01.11"]
[Round "8"]
[White "Potkin, Vladimir"]
[Black "Liu, Casper"]
[Result "0-1"]
[Board "155"]
[TimeControl "180+1"]
[WhiteFideId "4131061"]
[BlackFideId "1454153"]
[WhiteElo "2655"]
[BlackElo "2509"]
[WhiteTeam "RUS"]
[BlackTeam "DEN"]
[WhiteClock "0:00:09"]
[BlackClock "0:00:07"]

1. Nf3 {[%clk 0:03:00]}  d6 {[%clk 0:02:59]} 2. e4 {[%clk 0:03:00]}  Nf6 {[%clk 0:02:58]} 3. Nc3 {[%clk 0:02:59]}  g6 {[%clk 0:02:58]} 4. d4 {[%clk 0:03:00]}  Bg4 {[%clk 0:02:58]} 5. Be2 {[%clk 0:03:00]}  Bg7 {[%clk 0:02:58]} 6. O-O {[%clk 0:03:00]}  O-O {[%clk 0:02:59]} 7. Be3 {[%clk 0:03:00]}  Nc6 {[%clk 0:02:59]} 8. d5 {[%clk 0:02:59]}  Bxf3 {[%clk 0:02:57]} 9. Bxf3 {[%clk 0:02:59]}  Ne5 {[%clk 0:02:58]} 10. Be2 {[%clk 0:03:00]}  a6 {[%clk 0:02:52]} 11. f4 {[%clk 0:02:57]}  Ned7 {[%clk 0:02:52]} 12. Bf3 {[%clk 0:02:53]}  e6 {[%clk 0:02:44]} 13. dxe6 {[%clk 0:02:43]}  fxe6 {[%clk 0:02:45]} 14. e5 {[%clk 0:02:43]}  dxe5 {[%clk 0:02:45]} 15. Bxb7 {[%clk 0:02:43]}  Rb8 {[%clk 0:02:45]} 16. Bxa6 {[%clk 0:02:43]}  Rxb2 {[%clk 0:02:43]} 17. Bc4 {[%clk 0:02:42]}  exf4 {[%clk 0:02:35]} 18. Bxf4 {[%clk 0:02:37]}  Kh8 {[%clk 0:02:24]} 19. Bb3 {[%clk 0:02:05]}  Nc5 {[%clk 0:01:52]} 20. Qxd8 {[%clk 0:02:03]}  Rxd8 {[%clk 0:01:53]} 21. Bxc7 {[%clk 0:02:03]}  Rc8 {[%clk 0:01:39]} 22. Be5 {[%clk 0:02:01]}  Ng4 {[%clk 0:01:23]} 23. Bxg7+ {[%clk 0:01:59]}  Kxg7 {[%clk 0:01:24]} 24. Na4 {[%clk 0:01:25]}  Nxb3 {[%clk 0:01:08]} 25. cxb3 {[%clk 0:01:18]}  Rd2 {[%clk 0:01:03]} 26. Rfd1 {[%clk 0:01:14]}  Re2 {[%clk 0:00:47]} 27. Re1 {[%clk 0:01:11]}  Rd2 {[%clk 0:00:47]} 28. Rac1 {[%clk 0:00:45]}  Rxc1 {[%clk 0:00:46]} 29. Rxc1 {[%clk 0:00:46]}  Ne3 {[%clk 0:00:44]} 30. Nc5 {[%clk 0:00:39]}  Rxg2+ {[%clk 0:00:41]} 31. Kh1 {[%clk 0:00:38]}  Rxa2 {[%clk 0:00:42]} 32. Nxe6+ {[%clk 0:00:38]}  Kf6 {[%clk 0:00:42]} 33. Nc5 {[%clk 0:00:36]}  Ke5 {[%clk 0:00:39]} 34. b4 {[%clk 0:00:36]}  Kd4 {[%clk 0:00:30]} 35. Ne6+ {[%clk 0:00:35]}  Ke4 {[%clk 0:00:28]} 36. b5 {[%clk 0:00:34]}  Rb2 {[%clk 0:00:26]} 37. Nc5+ {[%clk 0:00:31]}  Kf3 {[%clk 0:00:24]} 38. Ne6 {[%clk 0:00:16]}  Rg2 {[%clk 0:00:23]} 39. b6 {[%clk 0:00:14]}  Rb2 {[%clk 0:00:12]} 40. Ng5+ {[%clk 0:00:10]}  Kf4 {[%clk 0:00:11]} 41. Nxh7 {[%clk 0:00:10]}  Rxb6 {[%clk 0:00:11]} 42. Rg1 {[%clk 0:00:10]}  Ng4 {[%clk 0:00:09]} 43. h3 {[%clk 0:00:09]}  Nf2+ {[%clk 0:00:07]} 44. Kh2 {[%clk 0:00:09]}  Ne4 {[%clk 0:00:07]} 45. Rxg6 {[%clk 0:00:09]}  Rxg6 {[%clk 0:00:07]} 0-1

[Event "January 9 Early 2024"]
[Site "https://www.chess.com"]
[Date "2024.01.11"]
[Round "8"]
[White "Vachier-Lagrave, Maxime"]
[Black "Le, Tuan Minh"]
[Result "0-1"]
[Board "156"]
[TimeControl "180+1"]
[WhiteFideId "623539"]
[BlackFideId "12401153"]
[WhiteElo "3163"]
[BlackElo "3024"]
[WhiteTeam "FRA"]
[BlackTeam "VIE"]
[WhiteClock "0:00:36"]
[BlackClock "0:00:08"]

1. e4 {[%clk 0:03:00]}  e5 {[%clk 0:02:57]} 2. Nf3 {[%clk 0:03:01]}  Nc6 {[%clk 0:02:55]} 3. Bc4 {[%clk 0:03:01]}  Bc5 {[%clk 0:02:54]} 4. c3 {[%clk 0:03:00]}  Nf6 {[%clk 0:02:55]} 5. d3 {[%clk 0:03:00]}  d6 {[%clk 0:02:55]} 6. O-O {[%clk 0:03:00]}  a6 {[%clk 0:02:56]} 7. a4 {[%clk 0:03:00]}  Ba7 {[%clk 0:02:56]} 8. Nbd2 {[%clk 0:02:59]}  O-O {[%clk 0:02:55]} 9. Re1 {[%clk 0:02:58]}  Ng4 {[%clk 0:02:55]} 10. Re2 {[%clk 0:02:58]}  Kh8 {[%clk 0:02:55]} 11. Nf1 {[%clk 0:02:46]}  f5 {[%clk 0:02:51]} 12. Bg5 {[%clk 0:02:39]}  Qe8 {[%clk 0:02:49]} 13. exf5 {[%clk 0:02:40]}  Bxf5 {[%clk 0:02:42]} 14. d4 {[%clk 0:02:31]}  Qg6 {[%clk 0:02:27]} 15. Bc1 {[%clk 0:01:48]}  exd4 {[%clk 0:02:17]} 16. cxd4 {[%clk 0:01:49]}  Be4 {[%clk 0:02:04]} 17. Nh4 {[%clk 0:01:47]}  Qf6 {[%clk 0:01:45]} 18. Rxe4 {[%clk 0:01:47]}  Nxf2 {[%clk 0:01:36]} 19. Bg5 {[%clk 0:01:42]}  Qxg5 {[%clk 0:01:10]} 20. Nf3 {[%clk 0:01:43]}  Rxf3 {[%clk 0:01:10]} 21. Qxf3 {[%clk 0:01:44]}  Nxe4 {[%clk 0:01:10]} 22. Qxe4 {[%clk 0:01:44]}  Qe5 {[%clk 0:01:03]} 23. Qxe5 {[%clk 0:01:40]}  Nxe5 {[%clk 0:01:01]} 24. Be2 {[%clk 0:01:36]}  Bxd4+ {[%clk 0:01:01]} 25. Kh1 {[%clk 0:01:37]}  Rf8 {[%clk 0:00:50]} 26. Ng3 {[%clk 0:01:37]}  g6 {[%clk 0:00:49]} 27. Rd1 {[%clk 0:01:36]}  Bb6 {[%clk 0:00:36]} 28. h3 {[%clk 0:01:29]}  a5 {[%clk 0:00:37]} 29. b3 {[%clk 0:01:29]}  Rf4 {[%clk 0:00:35]} 30. Nf1 {[%clk 0:01:25]}  Kg7 {[%clk 0:00:34]} 31. Nd2 {[%clk 0:01:21]}  Rd4 {[%clk 0:00:33]} 32. g3 {[%clk 0:01:14]}  Bc5 {[%clk 0:00:32]} 33. Kg2 {[%clk 0:01:15]}  Bb4 {[%clk 0:00:32]} 34. Nc4 {[%clk 0:01:15]}  Rxd1 {[%clk 0:00:28]} 35. Bxd1 {[%clk 0:01:16]}  Nxc4 {[%clk 0:00:27]} 36. bxc4 {[%clk 0:01:17]}  Kf6 {[%clk 0:00:28]} 37. Kf3 {[%clk 0:01:17]}  Ke5 {[%clk 0:00:29]} 38. Ke3 {[%clk 0:01:18]}  Bc5+ {[%clk 0:00:28]} 39. Kd3 {[%clk 0:01:18]}  Bf2 {[%clk 0:00:28]} 40. Bf3 {[%clk 0:01:13]}  c6 {[%clk 0:00:24]} 41. Bg4 {[%clk 0:01:11]}  Bxg3 {[%clk 0:00:20]} 42. Bc8 {[%clk 0:01:12]}  b5 {[%clk 0:00:21]} 43. cxb5 {[%clk 0:01:11]}  cxb5 {[%clk 0:00:21]} 44. axb5 {[%clk 0:01:12]}  Bf2 {[%clk 0:00:22]} 45. Bg4 {[%clk 0:00:56]}  Bb6 {[%clk 0:00:21]} 46. Bd1 {[%clk 0:00:56]}  d5 {[%clk 0:00:20]} 47. Bb3 {[%clk 0:00:53]}  Kd6 {[%clk 0:00:17]} 48. Kc3 {[%clk 0:00:48]}  Kc5 {[%clk 0:00:18]} 49. Kd3 {[%clk 0:00:48]}  Bd8 {[%clk 0:00:17]} 50. Ba2 {[%clk 0:00:48]}  h5 {[%clk 0:00:17]} 51. Bb3 {[%clk 0:00:48]}  g5 {[%clk 0:00:17]} 52. Bd1 {[%clk 0:00:49]}  h4 {[%clk 0:00:14]} 53. Bf3 {[%clk 0:00:43]}  a4 {[%clk 0:00:13]} 54. Kc2 {[%clk 0:00:42]}  d4 {[%clk 0:00:07]} 55. Be2 {[%clk 0:00:42]}  Kb4 {[%clk 0:00:07]} 56. Kb2 {[%clk 0:00:40]}  a3+ {[%clk 0:00:08]} 57. Ka2 {[%clk 0:00:37]}  Bb6 {[%clk 0:00:08]} 58. Bf1 {[%clk 0:00:36]}  Bc5 {[%clk 0:00:08]} 0-1

[Event "January 9 Early 2024"]
[Site "https://www.chess.com"]
[Date "2024.01.11"]
[Round "8"]
[White "Morales Garcia, Sergio Joshafatt"]
[Black "Lund, Gunnar"]
[Result "0-1"]
[Board "157"]
[TimeControl "180+1"]
[WhiteFideId "5106249"]
[BlackFideId "1520814"]
[WhiteElo "2461"]
[BlackElo "2664"]
[WhiteTeam "MEX"]
[BlackTeam "NOR"]
[WhiteClock "0:00:02"]
[BlackClock "0:00:15"]

1. d4 {[%clk 0:02:56]}  d5 {[%clk 0:03:00]} 2. c4 {[%clk 0:02:57]}  e6 {[%clk 0:03:01]} 3. Nf3 {[%clk 0:02:57]}  Nf6 {[%clk 0:03:01]} 4. Nc3 {[%clk 0:02:57]}  Be7 {[%clk 0:03:02]} 5. Bf4 {[%clk 0:02:58]}  O-O {[%clk 0:03:02]} 6. e3 {[%clk 0:02:58]}  Nbd7 {[%clk 0:03:03]} 7. c5 {[%clk 0:02:57]}  c6 {[%clk 0:03:02]} 8. b4 {[%clk 0:02:56]}  b6 {[%clk 0:03:02]} 9. Bd3 {[%clk 0:02:51]}  a5 {[%clk 0:03:02]} 10. a3 {[%clk 0:02:51]}  Ba6 {[%clk 0:03:03]} 11. O-O {[%clk 0:02:49]}  Re8 {[%clk 0:03:01]} 12. h3 {[%clk 0:02:43]}  Qc8 {[%clk 0:02:57]} 13. Qe2 {[%clk 0:02:43]}  Bf8 {[%clk 0:02:56]} 14. Rfb1 {[%clk 0:02:39]}  Bxd3 {[%clk 0:02:55]} 15. Qxd3 {[%clk 0:02:39]}  b5 {[%clk 0:02:56]} 16. a4 {[%clk 0:02:32]}  axb4 {[%clk 0:02:56]} 17. Rxb4 {[%clk 0:02:31]}  Ne4 {[%clk 0:02:49]} 18. Nxe4 {[%clk 0:02:25]}  dxe4 {[%clk 0:02:50]} 19. Qxe4 {[%clk 0:02:26]}  Nf6 {[%clk 0:02:47]} 20. Qc2 {[%clk 0:02:06]}  Nd5 {[%clk 0:02:47]} 21. Rbb1 {[%clk 0:02:00]}  bxa4 {[%clk 0:02:43]} 22. Ne5 {[%clk 0:01:55]}  Rd8 {[%clk 0:02:38]} 23. Bg3 {[%clk 0:01:51]}  Ra7 {[%clk 0:01:33]} 24. Nc4 {[%clk 0:01:50]}  Qa6 {[%clk 0:01:28]} 25. e4 {[%clk 0:01:33]}  Nf6 {[%clk 0:01:25]} 26. Rb6 {[%clk 0:01:26]}  Qc8 {[%clk 0:01:21]} 27. Nd6 {[%clk 0:01:15]}  Bxd6 {[%clk 0:01:20]} 28. Bxd6 {[%clk 0:01:10]}  Qa8 {[%clk 0:01:10]} 29. Ra3 {[%clk 0:00:52]}  h6 {[%clk 0:01:08]} 30. Rb4 {[%clk 0:00:49]}  Ne8 {[%clk 0:00:53]} 31. Be5 {[%clk 0:00:44]}  f6 {[%clk 0:00:52]} 32. Bg3 {[%clk 0:00:44]}  Nc7 {[%clk 0:00:39]} 33. Raxa4 {[%clk 0:00:42]}  Rxa4 {[%clk 0:00:38]} 34. Rxa4 {[%clk 0:00:42]}  Qb7 {[%clk 0:00:37]} 35. Qa2 {[%clk 0:00:42]}  Nb5 {[%clk 0:00:26]} 36. Qxe6+ {[%clk 0:00:38]}  Kh8 {[%clk 0:00:27]} 37. d5 {[%clk 0:00:36]}  Nc3 {[%clk 0:00:23]} 38. Rc4 {[%clk 0:00:22]}  Ne2+ {[%clk 0:00:20]} 39. Kh2 {[%clk 0:00:21]}  Qb1 {[%clk 0:00:19]} 40. h4 {[%clk 0:00:14]}  Qg1+ {[%clk 0:00:19]} 41. Kh3 {[%clk 0:00:14]}  Qh1+ {[%clk 0:00:20]} 42. Kg4 {[%clk 0:00:11]}  Qxg2 {[%clk 0:00:20]} 43. dxc6 {[%clk 0:00:08]}  h5+ {[%clk 0:00:18]} 44. Kxh5 {[%clk 0:00:07]}  Qf3+ {[%clk 0:00:18]} 45. Qg4 {[%clk 0:00:06]}  g6+ {[%clk 0:00:17]} 46. Kh6 {[%clk 0:00:03]}  Qxg4 {[%clk 0:00:17]} 47. c7 {[%clk 0:00:02]}  Qh5# {[%clk 0:00:15]} 0-1

[Event "January 9 Early 2024"]
[Site "https://www.chess.com"]
[Date "2024.01.11"]
[Round "8"]
[White "Sierra Vallina, Lionel"]
[Black "Khouri, Ahmed Abbas"]
[Result "1-0"]
[Board "158"]
[TimeControl "180+1"]
[WhiteFideId "54559774"]
[BlackFideId "9301518"]
[WhiteElo "2630"]
[BlackElo "2302"]
[WhiteTeam "ESP"]
[BlackTeam "UAE"]
[WhiteClock "0:00:04"]
[BlackClock "0:00:03"]

1. e4 {[%clk 0:02:59]}  d5 {[%clk 0:02:59]} 2. exd5 {[%clk 0:02:59]}  Qxd5 {[%clk 0:03:00]} 3. Nc3 {[%clk 0:02:59]}  Qd6 {[%clk 0:03:01]} 4. d4 {[%clk 0:03:00]}  Nf6 {[%clk 0:03:01]} 5. Nf3 {[%clk 0:02:59]}  Bg4 {[%clk 0:03:02]} 6. h3 {[%clk 0:02:58]}  Bh5 {[%clk 0:03:02]} 7. g4 {[%clk 0:02:57]}  Bg6 {[%clk 0:03:02]} 8. Ne5 {[%clk 0:02:58]}  Nbd7 {[%clk 0:03:03]} 9. Nc4 {[%clk 0:02:46]}  Qe6+ {[%clk 0:02:55]} 10. Be3 {[%clk 0:02:42]}  Ne4 {[%clk 0:02:15]} 11. d5 {[%clk 0:02:32]}  Qf6 {[%clk 0:01:55]} 12. Nb5 {[%clk 0:02:12]}  O-O-O {[%clk 0:01:41]} 13. Nxa7+ {[%clk 0:02:06]}  Kb8 {[%clk 0:01:42]} 14. Nb5 {[%clk 0:02:06]}  e6 {[%clk 0:01:28]} 15. g5 {[%clk 0:01:40]}  Nxg5 {[%clk 0:01:20]} 16. Bg2 {[%clk 0:01:40]}  Bc5 {[%clk 0:01:03]} 17. d6 {[%clk 0:01:15]}  c6 {[%clk 0:00:46]} 18. Nd4 {[%clk 0:00:50]}  Be4 {[%clk 0:00:38]} 19. Bxg5 {[%clk 0:00:45]}  Qxg5 {[%clk 0:00:18]} 20. Bxe4 {[%clk 0:00:45]}  Qh4 {[%clk 0:00:13]} 21. Qd3 {[%clk 0:00:31]}  f5 {[%clk 0:00:14]} 22. Nxc6+ {[%clk 0:00:20]}  bxc6 {[%clk 0:00:10]} 23. Qb3+ {[%clk 0:00:21]}  Kc8 {[%clk 0:00:09]} 24. Bxc6 {[%clk 0:00:20]}  Qxf2+ {[%clk 0:00:09]} 25. Kd1 {[%clk 0:00:20]}  Qd4+ {[%clk 0:00:09]} 26. Kc1 {[%clk 0:00:18]}  Nb6 {[%clk 0:00:06]} 27. Nxb6+ {[%clk 0:00:12]}  Bxb6 {[%clk 0:00:07]} 28. Rd1 {[%clk 0:00:08]}  Qc5 {[%clk 0:00:07]} 29. Qxe6+ {[%clk 0:00:07]}  Kb8 {[%clk 0:00:07]} 30. d7 {[%clk 0:00:05]}  Rhf8 {[%clk 0:00:06]} 31. a3 {[%clk 0:00:04]}  f4 {[%clk 0:00:06]} 32. b4 {[%clk 0:00:04]}  Qc3 {[%clk 0:00:07]} 33. Ra2 {[%clk 0:00:03]}  f3 {[%clk 0:00:07]} 34. Qd6+ {[%clk 0:00:02]}  Ka7 {[%clk 0:00:07]} 35. a4 {[%clk 0:00:02]}  f2 {[%clk 0:00:06]} 36. a5 {[%clk 0:00:02]}  f1=Q {[%clk 0:00:05]} 37. axb6+ {[%clk 0:00:02]}  Kxb6 {[%clk 0:00:05]} 38. Bg2+ {[%clk 0:00:03]}  Kb5 {[%clk 0:00:04]} 39. Bxf1+ {[%clk 0:00:03]}  Rxf1 {[%clk 0:00:04]} 40. Ra5+ {[%clk 0:00:03]}  Kc4 {[%clk 0:00:03]} 41. Qc5# {[%clk 0:00:04]} 1-0

[Event "January 9 Early 2024"]
[Site "https://www.chess.com"]
[Date "2024.01.11"]
[Round "8"]
[White "Estrada Nieto, Julian"]
[Black "Krzyzanowski, Marcin"]
[Result "1/2-1/2"]
[Board "161"]
[TimeControl "180+1"]
[WhiteFideId "5101018"]
[BlackFideId "1132199"]
[WhiteElo "2603"]
[BlackElo "2773"]
[WhiteTeam "ESP"]
[BlackTeam "POL"]
[WhiteClock "0:00:07"]
[BlackClock "0:00:06"]

1. e4 {[%clk 0:03:00]}  e5 {[%clk 0:03:00]} 2. Nf3 {[%clk 0:03:01]}  Nc6 {[%clk 0:02:59]} 3. Bb5 {[%clk 0:03:01]}  a6 {[%clk 0:02:59]} 4. Ba4 {[%clk 0:03:02]}  d6 {[%clk 0:02:58]} 5. Bxc6+ {[%clk 0:03:00]}  bxc6 {[%clk 0:02:58]} 6. d4 {[%clk 0:03:01]}  exd4 {[%clk 0:02:56]} 7. Nxd4 {[%clk 0:03:01]}  Bd7 {[%clk 0:02:54]} 8. Nc3 {[%clk 0:02:59]}  Nf6 {[%clk 0:02:54]} 9. O-O {[%clk 0:02:59]}  Be7 {[%clk 0:02:55]} 10. Qf3 {[%clk 0:02:57]}  O-O {[%clk 0:02:52]} 11. e5 {[%clk 0:02:57]}  dxe5 {[%clk 0:02:51]} 12. Nxc6 {[%clk 0:02:57]}  Bxc6 {[%clk 0:02:52]} 13. Qxc6 {[%clk 0:02:57]}  Qd6 {[%clk 0:02:46]} 14. Qc4 {[%clk 0:02:48]}  Rab8 {[%clk 0:02:31]} 15. Rd1 {[%clk 0:02:44]}  Qb6 {[%clk 0:02:23]} 16. b3 {[%clk 0:02:30]}  Bc5 {[%clk 0:01:56]} 17. Qe2 {[%clk 0:02:20]}  Bd4 {[%clk 0:01:48]} 18. Na4 {[%clk 0:02:14]}  Qb5 {[%clk 0:01:02]} 19. c4 {[%clk 0:02:09]}  Qc6 {[%clk 0:00:50]} 20. Bb2 {[%clk 0:02:09]}  Rbd8 {[%clk 0:00:51]} 21. Bxd4 {[%clk 0:01:44]}  exd4 {[%clk 0:00:49]} 22. Nb2 {[%clk 0:01:41]}  Rfe8 {[%clk 0:00:47]} 23. Qd3 {[%clk 0:01:34]}  Ng4 {[%clk 0:00:44]} 24. Qg3 {[%clk 0:01:26]}  Nf6 {[%clk 0:00:38]} 25. Nd3 {[%clk 0:01:21]}  Ne4 {[%clk 0:00:37]} 26. Qf3 {[%clk 0:01:18]}  Qd6 {[%clk 0:00:32]} 27. Re1 {[%clk 0:01:07]}  Nc3 {[%clk 0:00:29]} 28. a4 {[%clk 0:00:50]}  h6 {[%clk 0:00:25]} 29. h3 {[%clk 0:00:50]}  a5 {[%clk 0:00:21]} 30. Kf1 {[%clk 0:00:41]}  Qb6 {[%clk 0:00:20]} 31. Ne5 {[%clk 0:00:32]}  f6 {[%clk 0:00:05]} 32. Nc6 {[%clk 0:00:32]}  Qxb3 {[%clk 0:00:04]} 33. Nxd8 {[%clk 0:00:28]}  Qxc4+ {[%clk 0:00:04]} 34. Kg1 {[%clk 0:00:28]}  Rxd8 {[%clk 0:00:04]} 35. Re7 {[%clk 0:00:20]}  Nd5 {[%clk 0:00:04]} 36. Re4 {[%clk 0:00:15]}  Qc3 {[%clk 0:00:04]} 37. Rd1 {[%clk 0:00:12]}  Qxf3 {[%clk 0:00:04]} 38. gxf3 {[%clk 0:00:12]}  c5 {[%clk 0:00:04]} 39. Re6 {[%clk 0:00:09]}  Nb4 {[%clk 0:00:03]} 40. Re7 {[%clk 0:00:07]}  c4 {[%clk 0:00:03]} 41. Rc7 {[%clk 0:00:06]}  c3 {[%clk 0:00:02]} 42. Re1 {[%clk 0:00:06]}  d3 {[%clk 0:00:02]} 43. Ree7 {[%clk 0:00:06]}  d2 {[%clk 0:00:02]} 44. Rxg7+ {[%clk 0:00:06]}  Kh8 {[%clk 0:00:02]} 45. Rh7+ {[%clk 0:00:06]}  Kg8 {[%clk 0:00:03]} 46. Rcg7+ {[%clk 0:00:07]}  Kf8 {[%clk 0:00:03]} 47. Rf7+ {[%clk 0:00:07]}  Kg8 {[%clk 0:00:04]} 48. Rhg7+ {[%clk 0:00:07]}  Kh8 {[%clk 0:00:05]} 49. Rh7+ {[%clk 0:00:07]}  Kg8 {[%clk 0:00:05]} 50. Rhg7+ {[%clk 0:00:07]}  Kh8 {[%clk 0:00:05]} 51. Rh7+ {[%clk 0:00:07]}  Kg8 {[%clk 0:00:06]} 1/2-1/2